bitfinex-derivatives/quotes_ETHF0:USTF0_20250701
["timestamp","ask_amount","ask_price","bid_price","bid_amount"]
[1751337095033,25.08084,2496.8,2496.7,0.80085]
[1751337095239,25.08082,2496.8,2496.7,2.07]
[1751337095644,0.80085,2496.7,2496.6,0.80086]
[1751337096038,0.80088,2496.6,2496.5,1.50779]
[1751337096240,0.80094,2496.5,2496.4,0.80092]
[1751337096435,0.80091,2496.6,2496.5,0.80089]
[1751337096640,0.80091,2496.6,2496.5,2.99089]
[1751337099050,0.80088,2496.7,2496.6,0.80086]
[1751337099449,0.80088,2496.7,2496.6,2.08]
[1751337100344,0.80088,2496.7,2496.3,1.50247]
[1751337100345,2.00214,2496.7,2496.3,1.50247]
[1751337100550,0.80095,2496.4,2496.3,5.5415]
[1751337101551,0.80095,2496.4,2496.3,6.34248]
[1751337102048,25.09094,2496.5,2496.4,0.80095]
[1751337102351,25.09094,2496.5,2496.4,8.45737222]
[1751337102551,0.80094,2496.5,2496.4,8.45737222]
[1751337102754,0.80094,2496.5,2496.4,9.88157222]
[1751337103755,0.80094,2496.5,2496.4,8.45737222]
[1751337104149,0.80094,2496.5,2496.4,7.65642222]
[1751337104350,0.80094,2496.5,2496.4,5.39]
[1751337105157,0.80094,2496.5,2496.4,7.65642222]
[1751337105346,0.80094,2496.5,2496.4,8.45737222]
[1751337105852,0.80094,2496.5,2496.4,7.65642222]
[1751337106052,0.80094,2496.5,2496.4,5.39]
[1751337106257,0.80095,2496.4,2496.3,0.7015]
[1751337106460,0.80095,2496.4,2496.3,0.7715]
[1751337106663,0.80095,2496.4,2496.3,1.57248]
[1751337107063,0.80095,2496.4,2496.3,0.7715]
[1751337107566,0.80095,2496.4,2496.3,1.57248]
[1751337110968,6.17222222,2496.5,2496.0,0.80105]
[1751337111172,0.80104,2496.1,2496.0,3.17105]
[1751337111471,0.80108,2496.0,2495.9,3.06750222]
[1751337111662,0.80108,2496.0,2495.9,9.53750222]
[1751337113367,0.80111,2495.9,2495.8,4.66682]
[1751337113665,0.80111,2495.9,2495.8,1.04]
[1751337113666,3.06753222,2495.9,2495.8,1.04]
[1751337113866,0.80121,2495.6,2495.5,0.6517]
[1751337114174,0.80121,2495.6,2495.5,1.5717]
[1751337115064,3.2078,2495.9,2495.5,1.5717]
[1751337115269,24.295,2495.8,2495.7,0.80114]
[1751337115463,24.295,2495.8,2495.7,4.65114]
[1751337115667,24.295,2495.8,2495.7,5.34944]
[1751337116071,25.09614,2495.8,2495.7,5.34944]
[1751337117072,24.295,2495.8,2495.7,5.34944]
[1751337118372,25.09614,2495.8,2495.7,5.34944]
[1751337120271,25.09614,2495.8,2495.7,4.5483]
[1751337120471,0.80124,2495.5,2495.4,4.00905]
[1751337120663,0.80124,2495.5,2495.4,5.00905]
[1751337121072,0.80124,2495.5,2495.4,4.2078]
[1751337124377,0.80124,2495.5,2495.4,1.80127]
[1751337129076,0.80123,2495.6,2495.5,0.80121]
[1751337129375,0.80123,2495.6,2495.5,3.11121]
[1751337129978,0.80123,2495.6,2495.5,2.31]
[1751337130180,2.21553,2495.6,2495.5,2.31]
[1751337130472,0.80129,2495.4,2495.3,0.80127]
[1751337130675,1.4143,2495.6,2495.4,0.80127]
[1751337130676,2.21556,2495.5,2495.4,0.80127]
[1751337130870,2.21556,2495.5,2495.4,4.25127]
[1751337131477,0.80126,2495.5,2495.4,4.25127]
[1751337132574,0.651,2495.6,2495.5,0.80124]
[1751337132774,4.6716,2495.7,2495.6,0.80121]
[1751337132974,28.9646,2495.7,2495.6,2.83121]
[1751337133177,4.6716,2495.7,2495.6,2.83121]
[1751337133380,0.80121,2495.6,2495.5,0.80122]
[1751337133680,0.80124,2495.5,2495.4,0.80125]
[1751337133872,0.80127,2495.4,2495.3,0.80128]
[1751337134074,1.50157,2495.4,2495.3,3.71128]
[1751337135579,1.9498,2495.6,2495.5,0.80124]
[1751337135783,0.80121,2495.6,2495.5,4.59124]
[1751337136177,0.80127,2495.5,2495.4,0.80125]
[1751337136372,0.80127,2495.5,2495.4,3.54125]
[1751337136578,0.80123,2495.6,2495.5,0.80121]
[1751337136780,0.80123,2495.6,2495.5,3.52171]
[1751337136974,0.80123,2495.6,2495.5,2.7405]
[1751337137170,0.80123,2495.6,2495.5,1.45174]
[1751337137578,0.80123,2495.6,2495.5,2.9805]
[1751337137971,0.80123,2495.6,2495.5,2.6005]
[1751337138381,0.80123,2495.6,2495.5,0.6505]
[1751337138981,0.80133,2495.2,2495.1,0.6978]
[1751337139184,0.80133,2495.2,2495.1,5.1586]
[1751337139578,0.80129,2495.4,2495.1,5.1586]
[1751337139778,0.80127,2495.4,2495.3,0.80127]
[1751337140083,2.26642222,2495.6,2495.3,0.80127]
[1751337140084,0.80123,2495.6,2495.5,0.80124]
[1751337140285,25.09423,2495.6,2495.5,5.23124]
[1751337140484,4.7068,2495.7,2495.6,0.80121]
[1751337140781,28.9998,2495.7,2495.6,2.72121]
[1751337141282,28.9998,2495.7,2495.6,3.11121]
[1751337144386,0.80121,2495.6,2495.5,0.80121]
[1751337144682,0.80121,2495.6,2495.5,6.05121]
[1751337145784,0.80124,2495.5,2495.4,1.50205]
[1751337145983,0.80124,2495.5,2495.4,3.93205]
[1751337146585,0.80124,2495.5,2495.4,1.50205]
[1751337146785,0.80124,2495.5,2495.4,1.85205]
[1751337148189,0.80124,2495.5,2495.4,1.0508]
[1751337149286,0.80124,2495.5,2495.4,0.7008]
[1751337149589,0.80133,2495.2,2495.1,1.3458]
[1751337149887,0.80133,2495.2,2495.1,6.7458]
[1751337150384,0.80133,2495.2,2495.1,7.54714]
[1751337150582,0.8014,2495.0,2494.9,4.0092]
[1751337150778,1.46448,2495.1,2495.0,0.8014]
[1751337150986,1.46448,2495.1,2495.0,5.4814]
[1751337154687,0.8014,2495.0,2494.9,0.6543]
[1751337155192,0.8014,2495.0,2494.8,0.80145]
[1751337155193,0.80153,2494.6,2494.5,1.19583918]
[1751337155485,6.27575222,2494.6,2494.5,0.22]
[1751337155688,0.80162,2494.3,2494.2,1.19583918]
[1751337155990,4.00942,2494.3,2494.2,0.19]
[1751337156185,0.80169,2494.1,2494.0,1.19583918]
[1751337156490,27.36211222,2494.1,2494.0,1.19583918]
[1751337157091,0.80172,2494.0,2493.9,1.19583918]
[1751337157291,5.40662,2494.0,2493.9,1.19583918]
[1751337157592,29.70762,2494.0,2493.9,1.19583918]
[1751337157892,29.70762,2494.0,2493.8,1.19583918]
[1751337157893,0.80175,2493.9,2493.8,1.19583918]
[1751337158089,4.46527222,2493.9,2493.8,1.39583918]
[1751337158288,4.46527222,2493.9,2493.8,0.2]
[1751337159190,0.80175,2493.9,2493.8,0.2]
[1751337160786,0.80175,2493.9,2493.8,1.00178]
[1751337160987,0.80175,2493.9,2493.8,0.2]
[1751337161195,0.80175,2493.9,2493.8,1.00178]
[1751337161689,25.10875,2493.9,2493.8,0.2]
[1751337162788,0.80182,2493.7,2493.6,1.19583918]
[1751337163099,4.00962,2493.7,2493.6,1.18185]
[1751337163287,4.00962,2493.7,2493.6,2.37768918]
[1751337163483,3.2078,2493.7,2493.6,1.18185]
[1751337163692,3.2078,2493.7,2493.6,2.37768918]
[1751337164194,3.71502222,2493.8,2493.6,1.18185]
[1751337164394,0.80182,2493.7,2493.6,1.18185]
[1751337164597,3.71502222,2493.8,2493.7,0.80182]
[1751337164795,3.71502222,2493.8,2493.7,1.93]
[1751337165090,3.71502222,2493.8,2493.6,0.80182]
[1751337165290,0.80182,2493.7,2493.6,0.19]
[1751337165489,0.6468,2493.8,2493.7,0.80182]
[1751337165691,1.44858,2493.8,2493.7,0.80182]
[1751337165890,1.44858,2493.8,2493.7,2.86182]
[1751337166595,24.9528,2493.8,2493.7,2.86182]
[1751337166897,25.75458,2493.8,2493.7,0.80182]
[1751337167693,24.9528,2493.8,2493.7,2.92182]
[1751337168095,24.9528,2493.8,2493.7,0.80182]
[1751337168294,25.75458,2493.8,2493.7,0.80182]
[1751337168491,25.75458,2493.8,2493.7,3.05182]
[1751337168797,25.75458,2493.8,2493.7,0.80182]
[1751337168996,25.75458,2493.8,2493.7,3.14182]
[1751337169194,25.75458,2493.8,2493.7,0.80182]
[1751337169599,25.75458,2493.8,2493.7,2.94182]
[1751337169891,25.75458,2493.8,2493.7,0.80182]
[1751337170095,25.75458,2493.8,2493.7,2.97182]
[1751337170601,25.75458,2493.8,2493.7,0.80182]
[1751337172102,25.75458,2493.8,2493.7,3.07182]
[1751337172803,25.75458,2493.8,2493.7,0.80182]
[1751337172991,25.75458,2493.8,2493.7,2.93182]
[1751337173192,25.75458,2493.8,2493.7,2.13]
[1751337173406,0.80182,2493.7,2493.6,0.80182]
[1751337173593,0.80182,2493.7,2493.6,3.05182]
[1751337175203,0.80182,2493.7,2493.6,3.05185]
[1751337175401,0.80182,2493.7,2493.6,2.25]
[1751337175598,24.9528,2493.8,2493.6,2.25]
[1751337175799,24.306,2493.8,2493.7,0.80182]
[1751337175994,24.306,2493.8,2493.7,4.30182]
[1751337176301,3.2078,2494.3,2494.2,0.80165]
[1751337176502,28.31742,2494.3,2494.2,4.69165]
[1751337176699,3.2078,2494.7,2494.3,2.00402]
[1751337176903,27.5158,2494.7,2494.6,0.80153]
[1751337177105,27.5158,2494.7,2494.6,2.39153]
[1751337177304,27.5238,2494.7,2494.6,2.39153]
[1751337177495,27.5238,2494.7,2494.6,0.80153]
[1751337177700,27.5238,2494.7,2494.6,2.87153]
[1751337177907,27.5238,2494.7,2494.5,0.80154]
[1751337178110,0.80158,2494.5,2494.3,0.80159]
[1751337178300,24.319,2494.4,2494.3,0.80159]
[1751337178502,24.319,2494.4,2494.3,2.89159]
[1751337178905,24.319,2494.4,2494.3,0.80159]
[1751337179212,24.319,2494.4,2494.3,3.14159]
[1751337179507,24.319,2494.4,2494.3,0.80159]
[1751337179709,25.12059,2494.4,2494.2,0.80163]
[1751337180007,2.26642222,2494.5,2494.3,0.80162]
[1751337180211,24.328,2494.4,2494.3,2.12]
[1751337180515,0.80162,2494.3,2494.2,0.80164]
[1751337180909,29.80222222,2494.4,2494.1,0.7014]
[1751337180910,0.80165,2494.2,2494.1,0.7014]
[1751337181106,0.80171,2494.1,2493.9,0.80173]
[1751337181309,24.33,2494.0,2493.9,3.19173]
[1751337181515,24.33,2494.0,2493.9,5.45815222]
[1751337183219,1.50925,2494.3,2493.9,4.65642222]
[1751337183412,3.2078,2494.5,2494.4,0.80159]
[1751337183608,27.5338,2494.5,2494.3,3.06802222]
[1751337183809,0.80159,2494.4,2494.3,4.4016]
[1751337184011,28.33538,2494.5,2494.4,0.80159]
[1751337184311,28.34038,2494.5,2494.4,3.06159]
[1751337184711,0.8016,2494.4,2494.3,0.8016]
[1751337185013,27.5388,2494.5,2494.4,0.80159]
[1751337185014,28.34038,2494.5,2494.4,0.80159]
[1751337185216,4.00938,2494.5,2494.4,3.13159]
[1751337185415,27.5408,2494.5,2494.4,0.80159]
[1751337185718,27.5408,2494.5,2494.4,2.91159]
[1751337186015,28.34236,2494.5,2494.4,0.80159]
[1751337186210,28.34236,2494.5,2494.4,3.10159]
[1751337186813,28.34236,2494.5,2494.4,0.80159]
[1751337187016,28.34236,2494.5,2494.4,2.96159]
[1751337187209,28.34236,2494.5,2494.4,0.80159]
[1751337187415,25.13356,2494.5,2494.4,0.80159]
[1751337187610,0.80159,2494.4,2494.3,0.6525]
[1751337187815,0.80163,2494.3,2494.2,0.80163]
[1751337188411,0.80163,2494.3,2494.2,3.02163]
[1751337189512,0.80163,2494.3,2494.2,2.82163]
[1751337190015,0.80163,2494.3,2494.2,0.80163]
[1751337190212,0.80163,2494.3,2494.2,3.19163]
[1751337190417,4.00942,2494.4,2494.3,0.80162]
[1751337190617,3.2078,2494.4,2494.3,2.77162]
[1751337191011,4.47400351,2494.7,2494.3,4.23642222]
[1751337191216,0.647,2494.7,2494.6,0.80153]
[1751337191416,24.979,2494.7,2494.6,2.93153]
[1751337191621,25.78051,2494.7,2494.6,2.93153]
[1751337192016,25.78051,2494.7,2494.6,0.80153]
[1751337192217,0.80156,2494.6,2494.5,0.80154]
[1751337192420,0.80156,2494.6,2494.5,2.95154]
[1751337192922,24.979,2494.7,2494.6,0.80153]
[1751337193118,3.06791222,2494.8,2494.7,0.80149]
[1751337193319,27.39891222,2494.8,2494.7,3.19149]
[1751337193517,0.80149,2494.7,2494.6,0.8015]
[1751337193717,0.80149,2494.7,2494.3,3.41285]
[1751337193718,0.80156,2494.6,2494.5,0.80155]
[1751337193913,0.80156,2494.6,2494.5,2.79155]
[1751337194319,0.80152,2494.7,2494.6,0.80151]
[1751337194526,25.12752,2494.7,2494.6,0.80151]
[1751337194723,25.12752,2494.7,2494.6,2.98151]
[1751337194926,25.12752,2494.7,2494.6,0.80151]
[1751337195317,0.80153,2494.6,2494.5,0.80153]
[1751337195522,0.80153,2494.6,2494.5,3.01153]
[1751337198027,25.12751,2494.7,2494.6,0.80153]
[1751337198228,0.80153,2494.6,2494.5,0.80155]
[1751337198424,0.80153,2494.6,2494.5,0.87155]
[1751337198924,4.00933,2494.6,2494.5,0.87155]
[1751337199330,3.2078,2494.6,2494.5,3.13797222]
[1751337199631,0.80149,2494.8,2494.7,0.80149]
[1751337199833,3.2078,2494.9,2494.8,0.80146]
[1751337200035,28.32523,2494.9,2494.8,3.06146]
[1751337200230,28.32523,2494.9,2494.8,0.80146]
[1751337200424,28.32523,2494.9,2494.7,0.6973]
[1751337200425,0.80146,2494.8,2494.7,1.49877]
[1751337200629,25.11745,2494.9,2494.8,0.80146]
[1751337200930,0.80146,2494.8,2494.7,1.49877]
[1751337201130,0.80146,2494.8,2494.7,1.56877]
[1751337201634,24.316,2494.9,2494.8,0.80146]
[1751337201829,24.316,2494.9,2494.8,3.20146]
[1751337202337,0.6541,2495.1,2495.0,0.8014]
[1751337202532,0.6541,2495.1,2495.0,3.0914]
[1751337202735,24.311,2495.1,2495.0,3.0914]
[1751337203035,0.8014,2495.0,2494.9,0.80141]
[1751337203232,0.8014,2495.0,2494.9,2.86141]
[1751337205431,25.11239,2495.1,2495.0,0.8014]
[1751337205636,25.11239,2495.1,2495.0,3.1514]
[1751337206136,28.29189351,2495.1,2495.0,3.1514]
[1751337206337,25.11239,2495.1,2495.0,3.1514]
[1751337206738,28.29189351,2495.1,2495.0,3.1514]
[1751337207041,25.11239,2495.1,2495.0,3.1514]
[1751337207236,10.12519573,2495.2,2495.1,0.80137]
[1751337207438,27.5148,2495.2,2495.1,0.80137]
[1751337207738,0.8014,2495.1,2495.0,0.80139]
[1751337207941,0.8014,2495.1,2495.0,3.05139]
[1751337208135,35.08747573,2495.2,2495.1,0.80137]
[1751337208341,33.76207573,2495.2,2495.1,2.85137]
[1751337208541,6.38730351,2495.2,2495.1,2.85137]
[1751337208732,28.31613,2495.2,2495.1,3.00137]
[1751337208938,29.78122222,2495.2,2494.7,4.12213]
[1751337209241,29.78122222,2495.2,2494.7,9.90213]
[1751337209441,30.58256222,2495.2,2495.1,0.80137]
[1751337209742,0.80139,2495.1,2495.0,0.80137]
[1751337209941,0.80139,2495.1,2495.0,3.10137]
[1751337210537,29.78122222,2495.2,2494.9,0.80141]
[1751337210538,0.80142,2495.0,2494.9,0.80141]
[1751337210842,3.06782222,2495.0,2494.9,2.34]
[1751337211036,3.06782222,2495.0,2494.9,3.14143]
[1751337211243,25.1094,2495.0,2494.9,3.09143]
[1751337211642,25.1094,2495.0,2494.9,3.17143]
[1751337211843,0.80143,2494.9,2494.8,0.80144]
[1751337212045,0.80143,2494.9,2494.8,0.86144]
[1751337212249,0.7,2494.9,2494.7,0.6973]
[1751337212544,1.50144,2494.9,2494.8,0.80146]
[1751337213243,0.80146,2494.8,2494.7,1.49877]
[1751337213444,0.80146,2494.8,2494.7,0.6973]
[1751337213845,0.80146,2494.8,2494.7,1.49879]
[1751337214146,1.50145,2494.9,2494.8,0.80146]
[1751337214341,0.8014,2495.0,2494.9,0.80143]
[1751337214548,0.80137,2495.1,2494.9,5.85]
[1751337214751,0.80137,2495.1,2495.0,0.8014]
[1751337214948,0.80137,2495.1,2495.0,5.654]
[1751337214949,25.11337,2495.1,2495.0,5.654]
[1751337217450,0.80137,2495.1,2495.0,5.654]
[1751337217649,25.10837,2495.1,2495.0,5.654]
[1751337218146,25.78007,2495.1,2495.0,5.654]
[1751337218347,25.78007,2495.1,2495.0,4.8526]
[1751337218646,0.80147,2494.9,2494.8,0.80145]
[1751337219349,0.80147,2494.9,2494.8,0.07]
[1751337219649,0.80147,2494.9,2494.8,0.87146]
[1751337229762,4.00923,2495.0,2494.9,0.80143]
[1751337230665,4.0092,2495.0,2494.9,0.80143]
[1751337230961,3.2078,2495.0,2494.9,2.35143]
[1751337231161,27.5088,2495.0,2494.9,2.35143]
[1751337231356,28.3102,2495.0,2494.9,4.61785222]
[1751337231963,27.5088,2495.0,2494.9,4.61785222]
[1751337232265,28.3102,2495.0,2494.9,2.35143]
[1751337232465,28.3102,2495.0,2494.8,0.80143]
[1751337232466,0.80146,2494.9,2494.8,0.80143]
[1751337232763,0.80149,2494.8,2494.7,0.80147]
[1751337232959,1.49228,2494.8,2494.7,0.80149]
[1751337233359,0.80149,2494.7,2494.6,1.5059]
[1751337233759,0.80149,2494.7,2494.6,0.7044]
[1751337233958,25.79328,2494.8,2494.7,0.80149]
[1751337234160,0.80149,2494.7,2494.6,1.50591]
[1751337236667,0.80149,2494.7,2494.6,1.56591]
[1751337237866,24.9918,2494.8,2494.7,0.80149]
[1751337238067,4.00921,2495.0,2494.7,8.29014222]
[1751337238369,24.301,2494.9,2494.8,0.80146]
[1751337238575,24.301,2494.9,2494.8,4.43146]
[1751337238962,25.10243,2494.9,2494.8,4.43146]
[1751337240670,0.80143,2494.9,2494.8,4.43146]
[1751337241463,3.2078,2495.0,2494.9,0.80143]
[1751337241660,3.2078,2495.0,2494.9,7.57395222]
[1751337242270,3.2078,2495.0,2494.6,0.7044]
[1751337242570,0.80149,2494.7,2494.6,1.50592]
[1751337243369,6.27571222,2494.7,2494.6,0.7044]
[1751337243570,0.80158,2494.5,2494.4,0.6876]
[1751337243876,0.80165,2494.2,2494.1,3.2078]
[1751337244072,25.10165,2494.2,2494.1,3.2678]
[1751337244474,24.3,2494.2,2494.1,4.06949]
[1751337246076,25.10165,2494.2,2494.1,0.86169]
[1751337246768,25.10165,2494.2,2494.1,0.06]
[1751337246965,25.10165,2494.2,2494.1,0.86169]
[1751337247368,25.10165,2494.2,2494.1,0.06]
[1751337249375,25.10165,2494.2,2494.1,0.86169]
[1751337254078,3.2078,2494.4,2494.3,0.80162]
[1751337254279,27.5128,2494.4,2494.3,4.88804222]
[1751337254969,27.5128,2494.4,2494.3,2.62162]
[1751337255174,27.5128,2494.4,2494.3,4.63804222]
[1751337255371,28.3144,2494.4,2494.3,4.63804222]
[1751337256881,25.1066,2494.4,2494.3,4.63804222]
[1751337257071,4.00905,2494.7,2494.5,0.80153]
[1751337257072,0.80157,2494.6,2494.5,0.80153]
[1751337257275,25.79167,2494.6,2494.5,2.36153]
[1751337257475,25.79167,2494.6,2494.5,0.80153]
[1751337259385,0.80157,2494.5,2494.4,0.80156]
[1751337259684,0.80157,2494.5,2494.4,2.67156]
[1751337260383,0.80162,2494.3,2494.2,0.651]
[1751337260578,25.12562,2494.3,2494.2,1.45265]
[1751337260982,25.79972,2494.3,2494.2,1.45265]
[1751337261481,25.79972,2494.3,2494.2,3.37265]
[1751337261675,25.79972,2494.3,2494.2,0.651]
[1751337261882,25.79972,2494.3,2493.9,2.26642222]
[1751337261883,0.8017,2494.1,2494.0,0.80169]
[1751337262084,0.8017,2494.1,2494.0,3.38169]
[1751337262474,0.80168,2494.2,2494.1,0.80167]
[1751337262673,0.80168,2494.2,2494.1,0.83167]
[1751337263878,3.2078,2494.4,2494.3,0.80162]
[1751337264081,0.80157,2494.5,2494.4,0.80156]
[1751337264278,0.80157,2494.5,2494.4,7.76888222]
[1751337264577,0.80155,2494.6,2494.5,0.80156]
[1751337264780,25.12855,2494.6,2494.5,4.38156]
[1751337265179,3.2078,2494.7,2494.6,0.80153]
[1751337265380,3.2078,2494.7,2494.6,10.83885222]
[1751337265581,3.2078,2494.7,2494.6,16.51995222]
[1751337268186,25.1474,2495.0,2494.9,0.80143]
[1751337268385,28.3552,2495.0,2494.9,2.59143]
[1751337268686,4.0092,2495.0,2494.9,2.59143]
[1751337269386,3.2078,2495.0,2494.9,2.59143]
[1751337270081,4.0092,2495.0,2494.9,2.59143]
[1751337270282,4.0092,2495.0,2494.9,4.85785222]
[1751337270686,3.2078,2495.0,2494.9,4.85785222]
[1751337272184,3.2078,2495.0,2494.9,2.59143]
[1751337273087,0.80137,2495.1,2495.0,0.8014]
[1751337273287,0.80137,2495.1,2495.0,2.4714]
[1751337273885,0.80149,2494.8,2494.7,0.80144]
[1751337274188,5.18294351,2495.1,2494.6,4.6904]
[1751337274189,0.80149,2494.7,2494.6,4.6904]
[1751337274682,2.00374,2494.7,2494.3,0.80162]
[1751337274888,2.00374,2494.7,2494.3,1.67792]
[1751337274889,0.8016,2494.4,2494.3,1.67792]
[1751337275088,0.8016,2494.4,2494.3,3.94434222]
[1751337275789,0.80158,2494.5,2494.4,0.80157]
[1751337276090,0.80158,2494.5,2494.4,2.47157]
[1751337276790,0.80156,2494.5,2494.4,2.47157]
[1751337278793,0.80156,2494.5,2494.4,1.67]
[1751337278992,0.80156,2494.5,2494.4,2.47159]
[1751337280195,0.80156,2494.5,2494.4,1.67]
[1751337280585,0.80156,2494.5,2494.4,2.47159]
[1751337282691,0.80156,2494.5,2494.4,1.67]
[1751337283487,0.80156,2494.5,2493.5,1.59206427]
[1751337283488,14.48214222,2494.5,2493.5,1.59206427]
[1751337283694,3.2078,2493.6,2493.5,6.89728]
[1751337283894,4.00965,2493.6,2493.5,6.0954]
[1751337286394,4.00965,2493.6,2493.5,6.89728]
[1751337287006,4.00965,2493.6,2493.5,6.0954]
[1751337287703,4.00965,2493.6,2493.5,6.89728]
[1751337289601,3.2078,2493.6,2493.5,9.16370222]
[1751337290007,4.00965,2493.6,2493.5,9.16370222]
[1751337292004,3.2078,2493.6,2493.5,9.16370222]
[1751337293607,25.15982,2493.7,2493.6,0.80185]
[1751337293807,25.15982,2493.7,2493.6,2.72185]
[1751337297415,24.358,2493.7,2493.6,2.72185]
[1751337297613,25.15982,2493.7,2493.6,2.72185]
[1751337297802,0.80181,2493.8,2493.7,0.80182]
[1751337298003,24.348,2493.8,2493.7,4.71824222]
[1751337298212,25.14978,2493.8,2493.7,4.71824222]
[1751337298412,24.348,2493.8,2493.7,4.71824222]
[1751337298609,3.2078,2493.9,2493.8,0.80178]
[1751337298809,3.2078,2493.9,2493.8,6.76178]
[1751337299017,3.2078,2493.9,2493.8,8.84228]
[1751337299715,4.00944,2494.3,2494.2,0.80165]
[1751337300016,28.35944,2494.3,2494.2,5.48165]
[1751337301018,28.35744,2494.3,2494.2,5.48165]
[1751337301717,4.00944,2494.3,2494.2,5.48165]
[1751337301917,28.36044,2494.3,2494.2,5.48165]
[1751337302417,28.36044,2494.3,2494.2,4.68]
[1751337302619,28.36044,2494.3,2494.2,5.48165]
[1751337302813,4.00944,2494.3,2494.2,5.48165]
[1751337303016,28.36044,2494.3,2494.2,5.48165]
[1751337303217,2.00417,2494.2,2493.8,0.80176]
[1751337303424,3.2078,2493.9,2493.8,0.86176]
[1751337303714,4.00955,2493.9,2493.8,0.86176]
[1751337305714,4.00955,2493.9,2493.8,0.06]
[1751337306412,0.80182,2493.7,2493.6,1.48293]
[1751337306618,0.80182,2493.7,2493.6,2.54293]
[1751337309323,0.80182,2493.7,2493.3,0.80191]
[1751337309324,0.80193,2493.4,2493.3,0.80191]
[1751337309516,0.80193,2493.4,2493.3,2.18191]
[1751337310422,0.80193,2493.4,2493.3,1.38]
[1751337310719,0.80193,2493.4,2493.3,2.18194]
[1751337311720,28.3687,2493.5,2493.4,0.80191]
[1751337311915,28.3687,2493.5,2493.4,0.51]
[1751337312418,29.7839,2493.5,2493.4,0.51]
[1751337313016,29.7839,2493.5,2493.4,1.31191]
[1751337313416,29.78388,2493.5,2493.4,1.31191]
[1751337314522,29.78388,2493.5,2493.4,0.51]
[1751337315420,29.78388,2493.5,2493.4,1.31191]
[1751337316923,29.78388,2493.5,2493.4,0.51]
[1751337317824,29.78388,2493.5,2493.4,1.31191]
[1751337318524,29.78388,2493.5,2493.4,0.51]
[1751337319024,29.78388,2493.5,2493.4,1.31191]
[1751337321522,29.77088,2493.5,2493.4,1.31191]
[1751337322425,28.969,2493.5,2493.4,1.31191]
[1751337322625,27.5498,2493.5,2493.4,1.31191]
[1751337323026,28.35168,2493.5,2493.4,0.51]
[1751337323225,30.61810222,2493.5,2493.4,0.51]
[1751337323526,32.00810222,2493.5,2493.4,0.51]
[1751337324418,29.74168,2493.5,2493.4,0.51]
[1751337326032,29.73968,2493.5,2493.4,1.31191]
[1751337329335,29.73968,2493.5,2493.4,0.51]
[1751337330537,0.80201,2493.1,2493.0,0.7031]
[1751337330725,30.61023222,2493.1,2493.0,1.06]
[1751337330932,0.80214,2492.7,2492.6,1.60171682]
[1751337331128,27.40656222,2492.7,2492.6,0.61]
[1751337331332,26.60442222,2492.7,2492.4,1.60171682]
[1751337331533,4.01,2492.5,2492.4,2.27171682]
[1751337331732,28.36,2492.5,2492.4,0.67]
[1751337332533,0.80236,2492.0,2491.9,1.60171682]
[1751337332735,28.35719,2492.0,2491.9,1.45]
[1751337333241,27.5548,2492.0,2491.9,2.25239]
[1751337333939,28.35716,2492.0,2491.9,2.25239]
[1751337334241,27.5548,2492.0,2491.9,2.25239]
[1751337334539,28.35716,2492.0,2491.9,1.45]
[1751337335034,3.2078,2492.0,2491.9,2.25239]
[1751337335240,27.5938,2492.0,2491.9,2.25239]
[1751337336830,2.00599,2491.9,2491.0,2.00664]
[1751337337036,3.2078,2491.7,2491.6,0.80249]
[1751337337233,4.01026,2491.7,2491.6,0.80249]
[1751337338039,3.2078,2491.7,2491.6,0.80249]
[1751337338544,3.2078,2491.7,2491.5,0.80252]
[1751337338842,2.84942,2491.6,2491.5,0.35]
[1751337339040,2.84942,2491.6,2491.5,1.15252]
[1751337339240,2.84942,2491.6,2491.5,0.35]
[1751337339843,2.0469,2491.6,2491.5,0.35]
[1751337340039,0.6506,2491.6,2491.5,1.15252]
[1751337340242,25.0466,2491.6,2491.5,1.15252]
[1751337340441,25.84909,2491.6,2491.5,1.15252]
[1751337340644,25.0466,2491.6,2491.5,1.15252]
[1751337341240,25.84909,2491.6,2491.5,1.15252]
[1751337341743,25.84909,2491.6,2491.5,0.35]
[1751337341943,0.80259,2491.3,2491.2,0.8026]
[1751337342156,28.40139,2491.3,2491.2,1.8326]
[1751337342848,27.6138,2491.3,2491.2,4.09902222]
[1751337345844,0.80247,2491.7,2491.6,0.80246]
[1751337346044,0.80249,2491.6,2491.5,0.8025]
[1751337346547,2.84099,2491.6,2491.5,0.8025]
[1751337347151,0.80269,2491.1,2491.0,0.80267]
[1751337347449,28.41849,2491.1,2491.0,1.94267]
[1751337347945,28.41849,2491.1,2491.0,1.14]
[1751337348148,0.80275,2490.9,2490.8,0.80275]
[1751337348348,0.80275,2490.9,2490.8,3.12275]
[1751337348649,1.4223,2491.0,2490.9,0.80272]
[1751337348947,1.4223,2491.0,2490.9,2.64272]
[1751337349147,4.49140222,2491.0,2490.9,1.84]
[1751337349352,0.8028,2490.7,2490.6,0.8028]
[1751337349652,0.80281,2490.6,2490.5,1.49264]
[1751337349838,0.80281,2490.6,2490.5,4.07264]
[1751337350043,16.7748,2491.0,2490.9,0.80272]
[1751337350348,0.80273,2490.9,2490.8,0.80273]
[1751337350648,29.85681,2491.0,2490.9,0.80272]
[1751337351044,27.6388,2491.0,2490.9,3.06272]
[1751337351239,3.2078,2491.0,2490.9,3.06272]